bitfinex/quotes_BTCUSD_20250623
["timestamp","ask_amount","ask_price","bid_price","bid_amount"]
[1750702628102,0.00023811,103210.0,103200.0,0.53935783]
[1750702628311,0.02341723,103210.0,103200.0,0.53935783]
[1750702628519,0.0234145,103210.0,103200.0,0.53935783]
[1750702628733,0.0234145,103210.0,103200.0,0.56842674]
[1750702628965,0.00023811,103210.0,103200.0,0.55873757]
[1750702629221,0.00023811,103210.0,103200.0,0.55873729]
[1750702629408,0.00023811,103210.0,103200.0,0.56842683]
[1750702629648,0.00023811,103210.0,103200.0,0.59265703]
[1750702629856,0.00023811,103210.0,103200.0,0.55389868]
[1750702630533,0.00023811,103210.0,103200.0,0.5635886]
[1750702630719,0.00023811,103210.0,103200.0,0.59265779]
[1750702630955,0.00023811,103210.0,103200.0,0.5635886]
[1750702631168,0.00023811,103210.0,103200.0,0.57327842]
[1750702631383,0.00023811,103210.0,103200.0,0.5926576]
[1750702631621,0.00023811,103210.0,103200.0,0.57327842]
[1750702631836,0.00023811,103210.0,103200.0,0.60234686]
[1750702632052,0.00023811,103210.0,103200.0,1.13242946]
[1750702632262,0.00023811,103210.0,103200.0,0.60234629]
[1750702632461,0.00023811,103210.0,103200.0,0.57327823]
[1750702632669,0.00023811,103210.0,103200.0,0.59265722]
[1750702632892,0.00023811,103210.0,103200.0,0.5635886]
[1750702633108,0.00023811,103210.0,103200.0,0.57327842]
[1750702633354,0.6096976,103210.0,103200.0,0.004]
[1750702633580,0.34,103180.0,103120.0,0.0042]
[1750702633815,4.885217,103150.0,103120.0,0.0042]
[1750702634052,0.8700826,103130.0,103120.0,0.0042]
[1750702634291,0.97589697,103130.0,103120.0,0.0042]
[1750702634513,0.06454085,103120.0,103090.0,0.05488]
[1750702634735,0.04127352,103120.0,103090.0,0.23556]
[1750702634963,0.57135612,103120.0,103100.0,0.18068]
[1750702635181,0.02316404,103120.0,103100.0,0.18068]
[1750702635417,0.55324664,103120.0,103110.0,0.00033814]
[1750702635636,0.34,103110.0,103100.0,0.18068]
[1750702635865,0.45945411,103110.0,103100.0,0.18081824]
[1750702636088,0.45945411,103110.0,103100.0,0.00013824]
[1750702636318,0.45945411,103110.0,103100.0,0.24261824]
[1750702636536,0.02316404,103110.0,103100.0,0.24261824]
[1750702637270,0.02316404,103110.0,103100.0,0.24265824]
[1750702637506,0.02316404,103110.0,103100.0,0.06193824]
[1750702637725,0.10019584,103110.0,103100.0,0.00013824]
[1750702638200,0.02316404,103110.0,103100.0,0.24575824]
[1750702638417,0.02616404,103110.0,103100.0,0.06503824]
[1750702638863,0.10319584,103110.0,103100.0,0.23553824]
[1750702639095,0.10319584,103110.0,103100.0,0.00013824]
[1750702639320,0.97598652,103110.0,103100.0,0.00013824]
[1750702640428,0.44291057,103110.0,103100.0,0.23557824]
[1750702640656,0.44291057,103110.0,103100.0,0.26807824]
[1750702641740,0.44291057,103110.0,103100.0,0.03263824]
[1750702642035,0.44291057,103110.0,103100.0,0.59366405]
[1750702642261,0.36616404,103110.0,103100.0,0.59366405]
[1750702642443,0.36616404,103110.0,103100.0,0.39967763]
[1750702642666,0.36616404,103110.0,103100.0,0.29937824]
[1750702642874,0.44291057,103110.0,103100.0,0.29937824]
[1750702643617,0.44291057,103110.0,103100.0,0.00013824]
[1750702643845,1.05273305,103110.0,103100.0,0.00013824]
[1750702644061,0.97598652,103110.0,103090.0,0.07779081]
[1750702644297,1.04611255,103100.0,103090.0,0.31327081]
[1750702644522,0.45945411,103100.0,103090.0,0.31327081]
[1750702644742,0.36316404,103100.0,103080.0,0.26176823]
[1750702644959,0.0765518,103090.0,103080.0,0.26176823]
[1750702645186,0.09971584,103090.0,103080.0,0.02628823]
[1750702645631,0.09971584,103090.0,103080.0,0.26176823]
[1750702645850,0.09971584,103090.0,103080.0,0.29216823]
[1750702646056,0.09971584,103090.0,103080.0,0.05668823]
[1750702646270,0.09971584,103090.0,103080.0,0.0304]
[1750702646496,0.09971584,103090.0,103080.0,0.23552]
[1750702646940,0.09971584,103090.0,103080.0,0.26692]
[1750702647667,0.09971584,103090.0,103080.0,0.30202]
[1750702648359,0.09971584,103090.0,103080.0,0.30502]
[1750702649494,0.02316404,103090.0,103080.0,0.23852]
[1750702649789,0.09971584,103090.0,103080.0,0.003]
[1750702650249,0.09971584,103090.0,103080.0,0.1838]
[1750702650718,0.09971584,103090.0,103080.0,0.003]
[1750702650952,0.43971584,103090.0,103080.0,0.003]
[1750702651180,0.36316404,103090.0,103080.0,0.003]
[1750702651409,0.36316404,103090.0,103070.0,0.31311081]
[1750702651640,0.45945411,103090.0,103080.0,0.001]
[1750702651869,0.36316404,103090.0,103080.0,0.002]
[1750702652809,1.26987537,103090.0,103080.0,0.001]
[1750702653045,0.34,103080.0,103070.0,0.25843081]
[1750702653271,0.45867066,103080.0,103070.0,0.07759081]
[1750702653522,0.45867066,103080.0,103070.0,0.07840769]
[1750702654005,1.09766914,103080.0,103070.0,0.07740769]
[1750702654222,0.49184666,103080.0,103070.0,0.07740769]
[1750702654440,0.49185946,103080.0,103070.0,0.07740769]
[1750702654649,0.49185946,103080.0,103070.0,0.07759081]
[1750702654863,0.49185946,103080.0,103070.0,0.27163369]
[1750702655066,0.49185946,103080.0,103070.0,0.07759081]
[1750702655287,0.12268346,103080.0,103070.0,0.37193308]
[1750702655498,0.02716404,103080.0,103070.0,0.43653308]
[1750702655720,0.02716404,103080.0,103070.0,0.44623503]
[1750702655918,0.02716404,103080.0,103070.0,0.4233302]
[1750702656155,0.02716404,103080.0,103070.0,0.58567308]
[1750702657462,0.02716404,103080.0,103070.0,0.27508206]
[1750702658299,0.02716404,103080.0,103070.0,0.54671575]
[1750702659599,0.10380406,103080.0,103070.0,0.54671575]
[1750702659824,0.10380406,103080.0,103070.0,1.15338686]
[1750702660054,0.02716404,103080.0,103070.0,1.15338686]
[1750702660273,0.12304569,103080.0,103070.0,1.15338686]
[1750702660499,0.08469409,103080.0,103070.0,0.67804189]
[1750702660729,0.08469409,103080.0,103070.0,1.20806686]
[1750702661199,0.08469409,103080.0,103070.0,1.21006686]
[1750702661459,0.08469409,103080.0,103070.0,0.68004189]
[1750702661669,0.08069409,103080.0,103070.0,1.20806686]
[1750702662462,0.08069409,103080.0,103070.0,1.54822686]
[1750702662747,0.07677798,103110.0,103100.0,0.27252727]
[1750702662958,0.07677798,103110.0,103100.0,0.63760348]
[1750702663189,0.07677798,103110.0,103100.0,1.16762845]
[1750702663405,0.07677798,103110.0,103100.0,0.63760348]
[1750702663622,0.07747435,103110.0,103100.0,1.16762845]
[1750702663836,0.07747435,103110.0,103100.0,0.62790482]
[1750702664072,0.00013796,103110.0,103100.0,0.63290482]
[1750702664295,0.00013796,103110.0,103100.0,0.63960367]
[1750702664545,0.07747672,103110.0,103100.0,0.56965494]
[1750702664770,0.07747672,103110.0,103100.0,0.004]
[1750702664771,0.60750169,103110.0,103100.0,0.004]
[1750702664978,0.09565738,103110.0,103100.0,0.18112]
[1750702665198,0.09565738,103110.0,103100.0,0.37510642]
[1750702665426,0.09565738,103110.0,103100.0,0.18104]
[1750702665633,0.00013796,103110.0,103100.0,0.18104]
[1750702666043,0.00013796,103110.0,103100.0,0.37502642]
[1750702666264,0.03880209,103110.0,103100.0,0.18204]
[1750702666471,0.58948697,103130.0,103100.0,0.38572574]
[1750702666677,0.58948697,103130.0,103100.0,0.37602642]
[1750702666912,0.62028697,103130.0,103100.0,0.37602642]
[1750702667122,0.62028697,103130.0,103100.0,0.001]
[1750702667333,0.59112497,103130.0,103100.0,0.001]
[1750702667540,0.59112497,103130.0,103110.0,0.1808]
[1750702667747,0.029162,103120.0,103110.0,0.18126102]
[1750702667953,0.59412497,103130.0,103110.0,0.18126102]
[1750702668154,0.62628697,103130.0,103110.0,0.18126102]
[1750702668568,0.62628697,103130.0,103110.0,0.00046102]
[1750702668785,0.34,103120.0,103110.0,0.00046102]
[1750702668994,0.93248697,103130.0,103110.0,0.25885183]
[1750702669254,0.402462,103130.0,103110.0,0.45281864]
[1750702669470,0.006,103120.0,103110.0,0.56281641]
[1750702669694,0.007,103120.0,103110.0,0.56281641]
[1750702669914,0.007,103120.0,103110.0,0.35915122]
[1750702670134,0.87002497,103130.0,103110.0,0.31349183]
[1750702670356,0.34,103130.0,103110.0,0.31349183]
[1750702670589,0.347,103130.0,103110.0,0.50745818]
[1750702670809,0.347,103130.0,103110.0,0.31349183]
[1750702671025,0.004,103120.0,103110.0,0.31349183]
[1750702672306,0.34,103130.0,103110.0,0.31349183]
[1750702672520,0.34,103130.0,103120.0,0.19394879]
[1750702672769,0.050001,103150.0,103130.0,0.19392976]
[1750702672977,0.018901,103150.0,103130.0,0.56231636]
[1750702673210,0.018901,103150.0,103130.0,0.58170888]
[1750702673429,0.358901,103150.0,103130.0,0.56131636]
[1750702673647,0.358901,103150.0,103130.0,0.57101267]
[1750702673864,0.358901,103150.0,103130.0,0.55161996]
[1750702674114,0.35,103150.0,103130.0,0.57101266]
[1750702674329,0.007,103150.0,103130.0,0.56131627]
[1750702674546,0.37316179,103150.0,103130.0,0.57101239]
[1750702674759,0.37316179,103150.0,103140.0,0.19391118]
[1750702674970,0.37316179,103150.0,103130.0,0.56131627]
[1750702675168,0.37316179,103150.0,103140.0,0.19391118]
[1750702675410,0.37016179,103150.0,103130.0,0.56131636]
[1750702675625,0.03016179,103150.0,103140.0,0.29421057]
[1750702675830,0.03116179,103150.0,103140.0,0.29421057]
[1750702676042,0.03116179,103150.0,103140.0,0.34885057]
[1750702676467,0.02716179,103150.0,103140.0,0.34885057]
[1750702677527,0.02716179,103150.0,103140.0,0.35085057]
[1750702677732,0.02716179,103150.0,103140.0,0.37024102]
[1750702677967,0.02716179,103150.0,103140.0,0.37024112]
[1750702678172,0.02716179,103150.0,103140.0,0.41053602]
[1750702678380,0.02716179,103150.0,103140.0,0.39114594]
[1750702678592,0.004,103150.0,103140.0,0.4008414]
[1750702678990,0.027111,103150.0,103140.0,0.41053667]
[1750702679195,0.004,103150.0,103140.0,0.42023185]
[1750702679338,0.004,103150.0,103140.0,0.18753939]
[1750702679544,0.004,103150.0,103140.0,0.35085057]
[1750702679752,0.004,103150.0,103140.0,0.37024139]
[1750702679978,0.004,103150.0,103140.0,0.36054612]
[1750702680181,0.004,103150.0,103140.0,0.37993685]
[1750702680382,0.004,103150.0,103140.0,0.37024158]
[1750702680589,0.004,103150.0,103140.0,0.15693939]
[1750702680810,0.004,103150.0,103140.0,0.002]
[1750702680811,0.95872845,103150.0,103140.0,0.002]
[1750702681007,1.05902784,103150.0,103140.0,0.002]
[1750702681212,1.15932723,103150.0,103140.0,0.002]
[1750702681417,1.17738483,103150.0,103140.0,0.002]
[1750702681616,1.20654383,103150.0,103140.0,0.002]
[1750702681875,1.18848623,103150.0,103140.0,0.002]
[1750702682298,0.0616,103140.0,103120.0,0.18072]
[1750702682517,0.34,103130.0,103120.0,0.37466879]
[1750702682717,0.34,103130.0,103120.0,0.47496818]
[1750702682718,0.36310348,103130.0,103120.0,0.47496818]
[1750702682918,0.02310348,103130.0,103120.0,0.47496818]
[1750702683328,0.02310348,103130.0,103120.0,0.28101939]
[1750702683583,0.02310348,103130.0,103110.0,0.2720171]
[1750702683789,0.02310348,103130.0,103120.0,0.37466879]
[1750702684163,0.60352497,103150.0,103120.0,0.47496818]
[1750702684391,0.60352497,103150.0,103130.0,0.07759081]
[1750702684510,0.61873487,103150.0,103130.0,0.07759081]
[1750702685339,0.61273487,103150.0,103130.0,0.25831081]
[1750702685540,0.59752497,103150.0,103130.0,0.25831081]
[1750702685747,0.59952497,103150.0,103130.0,0.45223353]
[1750702685950,0.0376,103150.0,103130.0,0.45223353]
[1750702686180,0.54776647,103130.0,103120.0,0.38759611]
[1750702686385,0.54776647,103130.0,103120.0,0.56202787]
[1750702686590,0.54776647,103130.0,103120.0,0.58142245]
[1750702686798,0.54776647,103130.0,103120.0,0.59111951]
[1750702686997,0.54776647,103130.0,103120.0,0.60081629]
[1750702687196,0.54776647,103130.0,103120.0,0.61051316]
[1750702687440,0.54776647,103130.0,103120.0,0.60081647]
[1750702687653,0.54776647,103130.0,103120.0,0.33557939]
[1750702687863,0.54776647,103130.0,103120.0,0.52952818]
[1750702688324,0.54776647,103130.0,103120.0,0.53922552]
[1750702688537,0.54776647,103130.0,103120.0,0.54892277]
[1750702688772,0.54776647,103130.0,103120.0,0.56061992]
[1750702689253,0.54776647,103130.0,103120.0,0.53152818]
[1750702689494,0.54776647,103130.0,103120.0,0.55092267]
[1750702689703,0.54776647,103130.0,103120.0,0.53152818]
[1750702690339,0.54776647,103130.0,103120.0,1.6824693]
[1750702690554,0.54776647,103130.0,103120.0,1.69701015]
[1750702690776,0.54776647,103130.0,103120.0,1.16698518]
[1750702690988,0.54776647,103130.0,103120.0,1.16694518]
[1750702691214,0.54776647,103130.0,103120.0,0.37258903]
[1750702691441,0.54776647,103130.0,103120.0,0.53148818]
[1750702691667,0.54776647,103130.0,103120.0,0.53048818]
[1750702691878,0.54776647,103130.0,103120.0,0.59207936]
[1750702692113,0.54776647,103130.0,103120.0,1.15550433]
[1750702692319,0.54776647,103130.0,103120.0,1.17004518]
[1750702692537,0.54776647,103130.0,103120.0,1.16804518]
[1750702692756,0.54776647,103130.0,103120.0,1.17404518]
[1750702692963,0.54776647,103130.0,103120.0,1.17104518]
[1750702693910,0.54776647,103130.0,103120.0,1.17504518]
[1750702694609,0.54776647,103130.0,103120.0,0.64502021]
[1750702694818,0.54776647,103130.0,103120.0,1.17504518]
[1750702696296,0.54776647,103130.0,103120.0,1.51504518]
[1750702696508,0.54776647,103130.0,103120.0,2.04507015]
[1750702697152,0.54776647,103130.0,103120.0,1.51504518]
[1750702697999,0.54776647,103130.0,103120.0,1.27980518]
[1750702698236,0.54776647,103130.0,103120.0,1.51100518]
[1750702698455,0.54776647,103130.0,103120.0,0.16285939]
[1750702698666,0.36827552,103130.0,103120.0,0.53744818]
[1750702699099,0.36827552,103130.0,103120.0,0.10529939]
[1750702699327,0.36827552,103130.0,103120.0,0.28993939]
[1750702699561,0.42897552,103130.0,103120.0,0.18964]
[1750702699856,0.42897552,103130.0,103120.0,0.009]
[1750702699857,0.39887552,103130.0,103120.0,0.009]
[1750702700108,1.39490054,103130.0,103120.0,0.005]
[1750702700389,1.62321368,103130.0,103120.0,0.005]
[1750702700615,1.65220355,103130.0,103120.0,0.005]
[1750702700900,1.07505144,103130.0,103120.0,0.005]
[1750702701120,0.82135805,103130.0,103110.0,0.07805183]
[1750702701612,0.92165744,103130.0,103120.0,0.001]
[1750702701844,0.92165744,103130.0,103110.0,0.00046102]
[1750702701845,0.0625,103120.0,103110.0,0.00046102]
[1750702702084,0.6157415,103120.0,103110.0,0.00046102]
[1750702702530,0.93252497,103120.0,103110.0,0.00046102]
[1750702702760,0.95572887,103120.0,103110.0,0.00046102]
[1750702703000,0.3632039,103120.0,103110.0,0.19442862]
[1750702703236,0.001,103120.0,103110.0,0.29472801]
[1750702703519,0.001,103120.0,103110.0,0.39171492]
[1750702704171,0.001,103120.0,103110.0,0.38201701]
[1750702704386,0.001,103120.0,103110.0,0.3820171]
[1750702704593,0.001,103120.0,103110.0,0.39171529]
[1750702704809,0.001,103120.0,103110.0,0.40141338]
[1750702705031,0.76864152,103130.0,103110.0,0.37231737]
[1750702705246,0.79183984,103130.0,103110.0,0.37331737]
[1750702705668,0.79183984,103130.0,103110.0,0.39271403]
[1750702705875,0.76864152,103130.0,103110.0,0.37431737]
[1750702706110,0.76864152,103130.0,103110.0,0.37331737]
[1750702706311,0.76964152,103130.0,103110.0,0.38301565]
[1750702706518,0.76964152,103130.0,103110.0,0.38201575]
[1750702706970,0.34,103120.0,103110.0,0.39171384]
[1750702707174,0.34,103120.0,103110.0,0.37231737]
[1750702707402,0.34,103120.0,103110.0,0.10076041]
[1750702707638,0.3726,103120.0,103110.0,0.00046102]
[1750702707861,0.4033,103120.0,103110.0,0.00046102]
[1750702708538,0.4033,103120.0,103110.0,0.00146102]
[1750702708746,0.39579529,103120.0,103110.0,0.00246102]
[1750702709396,0.3726,103120.0,103110.0,0.08005183]
[1750702709613,0.34,103120.0,103110.0,0.08005183]
[1750702709832,0.34,103120.0,103110.0,0.27401943]
[1750702710282,0.34,103120.0,103110.0,0.08005183]
[1750702710506,0.34,103120.0,103110.0,0.27401943]
[1750702711401,0.70827552,103130.0,103110.0,0.5759551]
[1750702711633,0.70827552,103130.0,103120.0,0.29424818]
[1750702712272,0.70827552,103130.0,103120.0,0.10029939]
[1750702712703,0.70827552,103130.0,103120.0,0.29424818]
[1750702713984,0.70827552,103130.0,103120.0,0.10029939]
[1750702714199,0.34,103120.0,103110.0,0.51907762]
[1750702714424,0.34,103120.0,103110.0,0.63877273]
[1750702714638,0.36927552,103130.0,103120.0,0.22304034]
[1750702714866,0.16152241,103130.0,103120.0,0.85336451]
[1750702715094,0.16152241,103130.0,103120.0,0.89336129]
[1750702715444,0.16052241,103130.0,103120.0,0.36333632]
[1750702715869,0.16052241,103130.0,103120.0,0.35363963]
[1750702716061,0.16052241,103130.0,103120.0,0.3653365]
[1750702716455,0.16052241,103130.0,103120.0,0.37503328]
[1750702717053,0.16052241,103130.0,103120.0,0.90505825]
[1750702717253,0.16052241,103130.0,103120.0,0.37503328]
[1750702718293,0.16052241,103130.0,103120.0,0.90505825]
[1750702718522,0.16052241,103130.0,103120.0,0.93565825]
[1750702718805,0.16052241,103130.0,103120.0,0.9501991]
[1750702719023,0.16052241,103130.0,103120.0,0.93565825]
[1750702719244,0.16052241,103130.0,103120.0,0.63237651]
[1750702719922,0.16052241,103130.0,103120.0,0.92596148]
[1750702720144,0.16052241,103130.0,103120.0,1.17690233]
[1750702721275,0.16052241,103130.0,103120.0,1.17590233]
[1750702721498,0.16052241,103130.0,103120.0,1.17490233]
[1750702721715,0.16052241,103130.0,103120.0,1.17790233]
[1750702721915,0.16052241,103130.0,103120.0,1.17990233]
[1750702723955,0.16052241,103130.0,103120.0,1.17962233]
[1750702724598,0.16052241,103130.0,103120.0,0.58502258]
[1750702724811,0.16052241,103130.0,103120.0,1.10414148]
[1750702725022,0.16052241,103130.0,103120.0,1.16474148]
[1750702725234,0.16052241,103130.0,103120.0,0.94320233]
[1750702725442,0.16052241,103130.0,103120.0,1.17928233]
[1750702725884,0.16052241,103130.0,103120.0,0.36863651]
[1750702726117,0.16052241,103130.0,103120.0,0.57411651]
[1750702726653,0.16052241,103130.0,103120.0,0.60471651]
[1750702728282,0.16052241,103130.0,103120.0,1.13474148]
[1750702730030,0.16052241,103130.0,103120.0,0.60471651]
[1750702730228,0.16052241,103130.0,103120.0,1.13474148]
[1750702730456,0.16052241,103130.0,103120.0,1.16574148]
[1750702731939,0.16052241,103130.0,103120.0,1.18028233]
[1750702736328,0.16052241,103130.0,103120.0,1.7103073]
[1750702736582,0.16052241,103130.0,103120.0,1.18028233]
[1750702738435,0.16052241,103130.0,103120.0,2.0503073]
[1750702738657,0.004,103150.0,103140.0,0.62709672]
[1750702738864,0.004,103150.0,103140.0,1.49346108]
[1750702739731,0.004,103150.0,103140.0,1.49946108]
[1750702740814,0.004,103150.0,103140.0,0.36169611]
[1750702741037,0.004,103150.0,103140.0,0.55560121]
[1750702741251,0.004,103150.0,103140.0,0.57029611]
[1750702741925,0.004,103150.0,103140.0,0.57999166]
[1750702742140,0.004,103150.0,103140.0,0.30521057]
[1750702742367,0.0667,103150.0,103140.0,0.11129939]
[1750702742573,0.0667,103150.0,103140.0,0.34045939]
[1750702742795,0.0667,103150.0,103140.0,0.33645939]
[1750702743005,0.0667,103150.0,103140.0,0.10029939]
[1750702743216,0.0667,103150.0,103140.0,0.33745939]
[1750702743423,0.0677,103150.0,103140.0,0.33745939]
[1750702743634,0.0677,103150.0,103140.0,0.52937057]
[1750702743835,0.0667,103150.0,103140.0,0.52937057]
[1750702744040,0.0677,103150.0,103140.0,0.52937057]
[1750702744283,0.0677,103150.0,103140.0,0.55845611]
[1750702744479,0.005,103150.0,103140.0,1.08848108]
[1750702744697,0.005,103150.0,103140.0,0.53906603]
[1750702744917,0.005,103150.0,103140.0,0.53906594]
[1750702745131,0.005,103150.0,103140.0,0.55845602]
[1750702745344,0.005,103150.0,103140.0,0.10029939]
[1750702745595,0.0342,103150.0,103140.0,0.53902603]
[1750702745806,0.0342,103150.0,103140.0,1.08944108]
[1750702745807,0.004,103150.0,103140.0,1.08944108]
[1750702746034,0.004,103150.0,103140.0,0.55941611]
[1750702747290,0.004,103150.0,103140.0,0.56141611]
[1750702749048,0.004,103150.0,103140.0,1.09144108]
[1750702749458,0.004,103150.0,103140.0,0.56141611]
[1750702750270,0.004,103150.0,103140.0,1.12220108]
[1750702750471,0.004,103150.0,103140.0,0.94164108]
[1750702750716,0.004,103150.0,103140.0,0.38081611]
[1750702750913,0.004,103150.0,103140.0,0.56137611]
[1750702751123,0.004,103150.0,103140.0,0.38081611]
[1750702751248,0.004,103150.0,103140.0,0.56137611]
[1750702751450,0.004,103150.0,103140.0,0.55168121]
[1750702751677,0.004,103150.0,103140.0,0.56137611]
[1750702752279,0.0357,103150.0,103140.0,0.29721057]
[1750702752478,0.0357,103150.0,103140.0,0.55168121]
[1750702752729,0.0357,103150.0,103140.0,0.56137629]
[1750702752932,0.0357,103150.0,103140.0,0.56137638]
[1750702753361,0.0357,103150.0,103140.0,0.56137648]
[1750702753570,0.0357,103150.0,103140.0,0.56137658]
[1750702753813,0.0357,103150.0,103140.0,0.5516814]
[1750702754030,0.0357,103150.0,103140.0,0.53225057]
[1750702754031,0.0671,103150.0,103140.0,0.53225057]
[1750702754244,0.004,103150.0,103140.0,0.57103128]
[1750702754692,0.004,103150.0,103140.0,0.56133638]
[1750702755151,0.004,103150.0,103140.0,0.56133657]
[1750702755356,0.004,103150.0,103140.0,0.57103156]
[1750702755784,0.004,103150.0,103140.0,0.58072646]
[1750702755992,0.004,103150.0,103140.0,0.57103156]
[1750702756204,0.004,103150.0,103140.0,0.58072646]
[1750702756857,0.004,103150.0,103140.0,1.15769228]
[1750702757114,0.004,103150.0,103140.0,1.19039228]
[1750702757325,0.004,103150.0,103140.0,0.66036731]
[1750702757526,0.004,103150.0,103140.0,1.19039228]
[1750702758405,0.004,103150.0,103140.0,1.15769228]
[1750702758616,0.004,103150.0,103140.0,0.62766731]
[1750702759455,0.00124,103150.0,103140.0,0.62766731]
[1750702759913,0.00124,103150.0,103140.0,0.39262731]
[1750702760126,0.00124,103150.0,103140.0,0.59522731]
[1750702761070,0.00124,103150.0,103140.0,1.15735228]
[1750702762848,0.00124,103150.0,103140.0,0.62732731]
[1750702763056,0.00124,103150.0,103140.0,1.15735228]
[1750702763519,0.00124,103150.0,103140.0,1.12525228]
[1750702764945,0.00124,103150.0,103140.0,1.15735228]
[1750702767486,0.00124,103150.0,103140.0,1.12525228]
[1750702767927,0.00124,103150.0,103140.0,1.12513228]
[1750702768575,0.00124,103150.0,103140.0,1.52783228]
[1750702768795,0.00124,103150.0,103140.0,1.57783228]
[1750702769675,0.00124,103150.0,103140.0,1.57483228]
[1750702769913,0.00124,103150.0,103140.0,1.58083228]
[1750702770347,0.00124,103150.0,103140.0,1.58279228]
[1750702770561,0.00124,103150.0,103140.0,1.59079228]
[1750702770772,0.00124,103150.0,103140.0,1.58879228]
[1750702771294,0.00124,103150.0,103140.0,1.59479228]
[1750702773746,0.00124,103150.0,103140.0,0.73348646]
[1750702773949,0.00124,103150.0,103140.0,1.49811143]
[1750702774149,0.00124,103150.0,103140.0,1.51265228]
[1750702774536,0.0001,103160.0,103140.0,1.44307129]
[1750702774734,0.0001,103180.0,103170.0,0.23747273]
[1750702774937,0.0001,103180.0,103170.0,1.40033709]
[1750702775945,0.00018934,103180.0,103170.0,1.40033709]
[1750702776163,0.00018934,103180.0,103170.0,1.40133709]
[1750702776370,0.00018934,103180.0,103170.0,1.45133709]
[1750702776611,0.00018934,103180.0,103170.0,1.79233709]
[1750702777243,0.00018934,103180.0,103170.0,1.79033709]
[1750702777668,0.00018934,103180.0,103170.0,1.79533709]
[1750702777865,0.00018934,103180.0,103170.0,1.84533709]
[1750702778068,0.00018934,103180.0,103170.0,1.79533709]
[1750702778464,0.00018934,103180.0,103170.0,1.84833709]
[1750702779085,0.00018934,103180.0,103170.0,1.79833709]
[1750702779489,0.00018934,103180.0,103170.0,1.84533709]
[1750702779922,0.00018934,103180.0,103170.0,1.84933709]
[1750702781294,0.00018934,103180.0,103170.0,1.51477709]
[1750702781706,0.00018934,103180.0,103170.0,1.68411709]
[1750702782501,0.00018934,103180.0,103170.0,1.34411709]
[1750702782699,0.00018934,103180.0,103170.0,1.10967709]
[1750702782912,0.00018934,103180.0,103170.0,1.56177709]
[1750702783111,0.00018934,103180.0,103170.0,1.9238079]
[1750702783517,0.00018934,103180.0,103170.0,1.6893679]
[1750702783712,0.00018934,103180.0,103170.0,1.9238079]
[1750702783940,0.00018934,103180.0,103170.0,1.9188079]
[1750702784506,0.00018934,103180.0,103170.0,1.84821709]
[1750702784707,0.00018934,103180.0,103170.0,1.84421709]
[1750702785048,0.00018934,103180.0,103170.0,1.85021709]
[1750702785402,0.00018934,103180.0,103170.0,1.85017709]
[1750702787074,0.00345542,103190.0,103170.0,1.85017709]
[1750702787296,1.96570558,103250.0,103240.0,0.02905737]
[1750702787512,1.96170558,103250.0,103240.0,2.26565091]
[1750702787740,1.96216626,103250.0,103240.0,2.08137091]
[1750702788018,1.96216626,103250.0,103240.0,2.31565091]
[1750702788232,1.52747685,103250.0,103240.0,2.03137091]
[1750702788443,1.12757685,103250.0,103240.0,2.34394097]
[1750702788647,1.12757685,103250.0,103240.0,2.31065091]
[1750702789073,1.12757685,103250.0,103240.0,2.31865091]
[1750702789534,1.12757685,103250.0,103240.0,2.07637091]
[1750702789772,1.12757685,103250.0,103240.0,2.31065091]
[1750702789982,1.12757685,103250.0,103240.0,2.36065091]
[1750702790442,1.12748843,103250.0,103240.0,2.56465091]
[1750702790672,1.12748843,103250.0,103240.0,2.56065091]
[1750702790927,0.52729813,103250.0,103240.0,2.71665091]
[1750702791162,0.51353892,103250.0,103240.0,2.71665091]
[1750702791416,0.49759075,103250.0,103240.0,2.71665091]
[1750702791633,0.49759075,103250.0,103240.0,2.67457091]
[1750702791905,0.49759075,103250.0,103240.0,2.72457091]
[1750702792152,0.49759075,103250.0,103240.0,2.47637091]
[1750702792384,0.49759075,103250.0,103240.0,1.82400509]
[1750702792616,0.49759075,103250.0,103240.0,1.83500509]
[1750702793052,0.49759075,103250.0,103240.0,0.98988012]
[1750702793274,0.49759075,103250.0,103240.0,1.18304012]
[1750702793500,0.49759075,103250.0,103240.0,1.76306509]
[1750702793732,0.49759075,103250.0,103240.0,1.78526509]
[1750702794252,0.49759075,103250.0,103240.0,1.74980594]
[1750702794455,0.49759075,103250.0,103240.0,1.71960594]
[1750702794652,0.49759075,103250.0,103240.0,1.72760594]
[1750702795114,0.49759075,103250.0,103240.0,1.80840594]
[1750702795583,0.49759075,103250.0,103240.0,1.80040594]
[1750702795803,0.49759075,103250.0,103240.0,2.36073091]
[1750702796011,0.49759075,103250.0,103240.0,2.31873091]
[1750702796227,0.49759075,103250.0,103240.0,2.36873091]
[1750702796719,0.49759075,103250.0,103240.0,2.51873091]
[1750702797594,0.49759075,103250.0,103240.0,2.71873091]
[1750702797796,0.004,103270.0,103260.0,0.93350339]
[1750702798027,0.00413817,103270.0,103260.0,1.21360278]
[1750702798237,0.34,103320.0,103310.0,0.1935921]
[1750702798453,0.0606938,103320.0,103310.0,0.54713011]
[1750702798681,0.37203154,103320.0,103310.0,0.55680905]
[1750702798901,0.37203154,103320.0,103310.0,0.5471303]
[1750702799121,0.90205651,103320.0,103310.0,0.33437939]
[1750702799390,0.90205651,103320.0,103310.0,0.53757072]
[1750702799621,0.90205651,103320.0,103310.0,0.55692917]
[1750702800456,0.56205651,103320.0,103310.0,0.55692917]
[1750702800685,0.03203154,103320.0,103310.0,0.55692917]
[1750702801343,0.00910402,103320.0,103310.0,0.57147002]
[1750702801566,0.00910402,103320.0,103310.0,0.60437002]
[1750702801808,0.00910402,103320.0,103310.0,1.18439499]
[1750702802076,0.00013804,103320.0,103310.0,1.55749499]
[1750702802276,0.00013804,103320.0,103310.0,1.55845499]
[1750702802529,0.00013804,103320.0,103310.0,1.02843002]
[1750702802759,0.00013804,103320.0,103310.0,0.91143002]
[1750702802984,0.00013804,103320.0,103310.0,0.32292917]
[1750702803224,0.53910554,103320.0,103310.0,0.54721023]
[1750702803464,1.49374709,103320.0,103310.0,0.10029939]
[1750702803684,0.34,103310.0,103300.0,0.17972]
[1750702803901,0.90188408,103310.0,103290.0,0.17972]
[1750702804116,0.86995286,103300.0,103290.0,0.10029939]
[1750702804340,0.0616,103290.0,103280.0,0.17968]
[1750702804554,0.62348408,103290.0,103280.0,0.27997939]
[1750702804798,0.96348408,103290.0,103280.0,0.10029939]
[1750702805015,0.90188408,103290.0,103270.0,0.19366588]
[1750702805230,0.37185911,103290.0,103280.0,0.17968]
[1750702805442,0.41055286,103290.0,103270.0,0.47364647]
[1750702805659,0.41055286,103290.0,103280.0,0.10029939]
[1750702805660,0.96588408,103290.0,103280.0,0.10029939]